fUST/lending_fUST_20250221
["ID","MTS","AMOUNT","RATE_DAILY","PERIOD"]
[353873962,1740107441058,-500.0,0.00013945,2]
[353873963,1740107441067,-500.0,0.00013945,2]
[353873965,1740107441076,-500.0,0.00013945,2]
[353873967,1740107441085,-500.0,0.00013945,2]
[353873969,1740107441098,-717.52,0.00013945,2]
[353873971,1740107441108,-500.0,0.00013945,2]
[353873973,1740107441118,-260.75565581,0.00013945,2]
[353873975,1740107441128,-536.81,0.00013945,2]
[353873977,1740107441138,-500.0,0.00013945,2]
[353873979,1740107441147,-500.0,0.00013945,2]
[353873981,1740107441157,-500.0,0.00013945,2]
[353873983,1740107441166,-500.0,0.00013945,2]
[353873985,1740107441177,-500.0,0.00013945,2]
[353873987,1740107441186,-500.0,0.00013945,2]
[353873989,1740107441195,-500.0,0.00013945,2]
[353873991,1740107441205,-500.0,0.00013945,2]
[353873993,1740107441214,-2466.59,0.00013945,2]
[353873995,1740107441223,-792.77,0.00013945,2]
[353873997,1740107441233,-1718.54,0.00013945,2]
[353873999,1740107441242,-500.0,0.00013945,2]
[353874001,1740107441251,-975.81,0.00013945,2]
[353874003,1740107441261,-902.95,0.00013945,2]
[353874005,1740107441272,-500.0,0.00013945,2]
[353874007,1740107441282,-500.0,0.00013945,2]
[353874009,1740107441291,-26068.84,0.00013945,2]
[353874011,1740107441300,-818.05,0.00013945,2]
[353874013,1740107441309,-500.0,0.00013945,2]
[353874015,1740107441318,-1628.9,0.00013945,2]
[353874017,1740107441328,-1290.91,0.00013945,2]
[353874019,1740107441337,-999.03,0.00013945,2]
[353874021,1740107441346,-965.51,0.00013945,2]
[353874023,1740107441355,-589.06,0.00013945,2]
[353874025,1740107441364,-2190.03,0.00013945,2]
[353874027,1740107441374,-4503.57,0.00013945,2]
[353874029,1740107441383,-500.0,0.00013945,2]
[353874031,1740107441392,-500.0,0.00013945,2]
[353874033,1740107441401,-500.0,0.00013945,2]
[353874035,1740107441410,-500.0,0.00013945,2]
[353874037,1740107441420,-2343.12,0.00013945,2]
[353874039,1740107441429,-500.0,0.00013945,2]
[353874041,1740107441438,-500.0,0.00013945,2]
[353874043,1740107441448,-500.0,0.00013945,2]
[353874045,1740107441457,-1304.69,0.00013945,2]
[353874047,1740107441466,-500.0,0.00013945,2]
[353874049,1740107441475,-881.12,0.00013945,2]
[353874051,1740107441485,-1406.72,0.00013945,2]
[353874053,1740107441494,-729.83,0.00013945,2]
[353874055,1740107441503,-500.0,0.00013945,2]
[353874057,1740107441512,-2606.66,0.00013945,2]
[353874059,1740107441521,-1620.99,0.00013945,2]
[353874061,1740107441530,-583.01,0.00013945,2]
[353874063,1740107441539,-907.24,0.00013945,2]
[353874065,1740107441549,-500.0,0.00013945,2]
[353874067,1740107441560,-500.0,0.00013945,2]
[353874069,1740107441569,-13171.03,0.00013945,2]
[353874071,1740107441579,-1823.61,0.00013945,2]
[353874073,1740107441588,-520.65,0.00013945,2]
[353874074,1740107441597,-500.0,0.00013945,2]
[353874076,1740107441608,-1856.58,0.00013945,2]
[353874079,1740107441617,-1298.88,0.00013945,2]
[353874081,1740107441627,-500.0,0.00013945,2]
[353874082,1740107441636,-500.0,0.00013945,2]
[353874084,1740107441645,-500.0,0.00013945,2]
[353874086,1740107441654,-500.0,0.00013945,2]
[353874088,1740107441663,-635.83,0.00013945,2]
[353874090,1740107441673,-500.0,0.00013945,2]
[353874092,1740107441683,-500.0,0.00013945,2]
[353874094,1740107441692,-4102.87,0.00013945,2]
[353874096,1740107441701,-1328.63,0.00013945,2]
[353874098,1740107441711,-1617.24,0.00013945,2]
[353874100,1740107441720,-500.0,0.00013945,2]
[353874102,1740107441729,-500.0,0.00013945,2]
[353874104,1740107441738,-500.0,0.00013945,2]
[353874106,1740107441748,-6014.3,0.00013945,2]
[353874108,1740107441757,-500.0,0.00013945,2]
[353874110,1740107441766,-11177.63,0.00013945,2]
[353874112,1740107441776,-500.0,0.00013945,2]
[353874114,1740107441785,-816.91,0.00013945,2]
[353874116,1740107441794,-500.0,0.00013945,2]
[353874118,1740107441803,-500.0,0.00013945,2]
[353874120,1740107441813,-151.0,0.00014,2]
[353874122,1740107441822,-520.553414,0.00014012,2]
[353874124,1740107441832,-500.47489498,0.00014022,2]
[353874126,1740107441841,-500.0,0.00014022,2]
[353874128,1740107441850,-500.0,0.00014027,2]
[353874130,1740107441859,-500.0,0.00014027,2]
[353874132,1740107441869,-500.0,0.00014027,2]
[353874134,1740107441878,-500.0,0.00014027,2]
[353874136,1740107441887,-594.01,0.00014027,2]
[353874138,1740107441897,-500.0,0.00014027,2]
[353874140,1740107441907,-500.0,0.00014027,2]
[353874142,1740107441916,-582.95,0.00014027,2]
[353874144,1740107441925,-500.0,0.00014027,2]
[353874147,1740107441935,-500.0,0.00014027,2]
[353874149,1740107441944,-500.0,0.00014027,2]
[353874151,1740107441954,-500.0,0.00014027,2]
[353874153,1740107441964,-717.52,0.00014027,2]
[353874155,1740107441974,-500.0,0.00014027,2]
[353874157,1740107441983,-536.81,0.00014027,2]
[353874159,1740107441992,-500.0,0.00014027,2]
[353874161,1740107442001,-500.0,0.00014027,2]
[353874163,1740107442011,-500.0,0.00014027,2]
[353874165,1740107442020,-500.0,0.00014027,2]
[353874167,1740107442029,-500.0,0.00014027,2]
[353874169,1740107442039,-500.0,0.00014027,2]
[353874171,1740107442048,-500.0,0.00014027,2]
[353874173,1740107442057,-500.0,0.00014027,2]
[353874175,1740107442067,-2466.59,0.00014027,2]
[353874177,1740107442076,-792.77,0.00014027,2]
[353874179,1740107442086,-1718.54,0.00014027,2]
[353874181,1740107442100,-500.0,0.00014027,2]
[353874183,1740107442110,-975.81,0.00014027,2]
[353874185,1740107442120,-902.95,0.00014027,2]
[353874187,1740107442131,-500.0,0.00014027,2]
[353874190,1740107442142,-500.0,0.00014027,2]
[353874192,1740107442151,-26068.84,0.00014027,2]
[353874194,1740107442160,-818.05,0.00014027,2]
[353874196,1740107442170,-500.0,0.00014027,2]
[353874198,1740107442179,-1628.9,0.00014027,2]
[353874199,1740107442189,-1290.91,0.00014027,2]
[353874201,1740107442198,-999.03,0.00014027,2]
[353874203,1740107442207,-965.51,0.00014027,2]
[353874205,1740107442217,-589.06,0.00014027,2]
[353874207,1740107442226,-2190.03,0.00014027,2]
[353874209,1740107442236,-4503.57,0.00014027,2]
[353874211,1740107442245,-500.0,0.00014027,2]
[353874213,1740107442255,-500.0,0.00014027,2]
[353874215,1740107442264,-500.0,0.00014027,2]
[353874217,1740107442273,-500.0,0.00014027,2]
[353874219,1740107442282,-2343.12,0.00014027,2]
[353874221,1740107442291,-500.0,0.00014027,2]
[353874223,1740107442300,-500.0,0.00014027,2]
[353874225,1740107442310,-500.0,0.00014027,2]
[353874227,1740107442319,-1304.69,0.00014027,2]
[353874229,1740107442328,-500.0,0.00014027,2]
[353874231,1740107442337,-881.12,0.00014027,2]
[353874233,1740107442346,-1406.72,0.00014027,2]
[353874235,1740107442356,-729.83,0.00014027,2]
[353874237,1740107442365,-500.0,0.00014027,2]
[353874239,1740107442374,-2606.66,0.00014027,2]
[353874241,1740107442383,-1620.99,0.00014027,2]
[353874243,1740107442392,-583.01,0.00014027,2]
[353874245,1740107442401,-907.24,0.00014027,2]
[353874247,1740107442410,-500.0,0.00014027,2]
[353874249,1740107442420,-500.0,0.00014027,2]
[353874251,1740107442430,-13171.03,0.00014027,2]
[353874253,1740107442439,-1823.61,0.00014027,2]
[353874255,1740107442448,-520.65,0.00014027,2]
[353874257,1740107442457,-500.0,0.00014027,2]
[353874259,1740107442467,-1856.58,0.00014027,2]
[353874262,1740107442477,-1298.88,0.00014027,2]
[353874263,1740107442486,-500.0,0.00014027,2]
[353874266,1740107442497,-500.0,0.00014027,2]
[353874269,1740107442507,-500.0,0.00014027,2]
[353874271,1740107442515,-500.0,0.00014027,2]
[353874273,1740107442525,-635.83,0.00014027,2]
[353874275,1740107442534,-500.0,0.00014027,2]
[353874277,1740107442543,-500.0,0.00014027,2]
[353874278,1740107442552,-4102.87,0.00014027,2]
[353874280,1740107442562,-1328.63,0.00014027,2]
[353874282,1740107442572,-1617.24,0.00014027,2]
[353874286,1740107442582,-500.0,0.00014027,2]
[353874288,1740107442591,-500.0,0.00014027,2]
[353874291,1740107442601,-500.0,0.00014027,2]
[353874294,1740107442610,-6014.3,0.00014027,2]
[353874297,1740107442619,-500.0,0.00014027,2]
[353874299,1740107442629,-11177.63,0.00014027,2]
[353874301,1740107442638,-500.0,0.00014027,2]
[353874303,1740107442647,-816.91,0.00014027,2]
[353874305,1740107442656,-507.97636152,0.00014027,2]
[353874307,1740107442666,-500.0,0.00014027,2]
[353874309,1740107442675,-417.22224198,0.00014044,2]
[353874311,1740107442684,-500.38026704,0.00014044,2]
[353874313,1740107442694,-500.2151841,0.00014055,2]
[353874315,1740107442703,-500.67248892,0.00014093,2]
[353874318,1740107442713,-500.96222818,0.00014093,2]
[353874321,1740107442722,-500.2436958,0.00014093,2]
[353874325,1740107442732,-156.65484187,0.00014093,2]
[353874328,1740107442742,-500.22613263,0.00014093,2]
[353874331,1740107442751,-151.0,0.000141,2]
[353874333,1740107442760,-1002.0,0.000141,2]
[353874335,1740107442770,-250.28689407,0.00014108,2]
[353874337,1740107442780,-500.0,0.00014108,2]
[353874339,1740107442789,-216.32689867,0.00014108,2]
[353874341,1740107442799,-500.0,0.00014108,2]
[353874344,1740107442808,-500.0,0.00014109,2]
[353874346,1740107442818,-500.0,0.00014109,2]
[353874348,1740107442827,-500.0,0.00014109,2]
[353874350,1740107442836,-500.0,0.00014109,2]
[353874352,1740107442845,-594.01,0.00014109,2]
[353874354,1740107442854,-500.0,0.00014109,2]
[353874356,1740107442863,-500.0,0.00014109,2]
[353874358,1740107442873,-582.95,0.00014109,2]
[353874360,1740107442882,-500.0,0.00014109,2]
[353874362,1740107442891,-500.0,0.00014109,2]
[353874364,1740107442900,-500.0,0.00014109,2]
[353874365,1740107442909,-500.0,0.00014109,2]
[353874367,1740107442917,-717.52,0.00014109,2]
[353874369,1740107442927,-500.0,0.00014109,2]
[353874371,1740107442935,-536.81,0.00014109,2]
[353874373,1740107442944,-500.0,0.00014109,2]
[353874375,1740107442953,-500.0,0.00014109,2]
[353874377,1740107442962,-232.64796735,0.00014109,2]
[353874379,1740107442971,-500.0,0.00014109,2]
[353874381,1740107442981,-500.0,0.00014109,2]
[353874383,1740107442990,-500.0,0.00014109,2]
[353874385,1740107443000,-500.0,0.00014109,2]
[353874387,1740107443010,-500.0,0.00014109,2]
[353874389,1740107443019,-2466.59,0.00014109,2]
[353874391,1740107443028,-792.77,0.00014109,2]
[353874393,1740107443038,-1718.54,0.00014109,2]
[353874395,1740107443047,-500.0,0.00014109,2]
[353874397,1740107443056,-975.81,0.00014109,2]
[353874399,1740107443066,-902.95,0.00014109,2]
[353874401,1740107443075,-608.411473,0.00014109,2]
[353874403,1740107443084,-500.0,0.00014109,2]
[353874405,1740107443097,-26068.84,0.00014109,2]
[353874407,1740107443108,-818.05,0.00014109,2]
[353874409,1740107443117,-500.0,0.00014109,2]
[353874411,1740107443127,-1628.9,0.00014109,2]
[353874414,1740107443146,-1290.91,0.00014109,2]
[353874416,1740107443158,-999.03,0.00014109,2]
[353874418,1740107443168,-965.51,0.00014109,2]
[353874421,1740107443180,-589.06,0.00014109,2]
[353874422,1740107443190,-2190.03,0.00014109,2]
[353874425,1740107443201,-4503.57,0.00014109,2]
[353874427,1740107443211,-500.0,0.00014109,2]
[353874429,1740107443220,-500.0,0.00014109,2]
[353874431,1740107443230,-500.0,0.00014109,2]
[353874433,1740107443240,-500.0,0.00014109,2]
[353874435,1740107443250,-2343.12,0.00014109,2]
[353874437,1740107443259,-500.0,0.00014109,2]
[353874439,1740107443270,-500.0,0.00014109,2]
[353874441,1740107443280,-500.0,0.00014109,2]
[353874443,1740107443290,-1304.69,0.00014109,2]
[353874445,1740107443445,-500.0,0.00014109,2]
[353874446,1740107443455,-881.12,0.00014109,2]
[353874447,1740107443465,-1406.72,0.00014109,2]
[353874448,1740107443475,-729.83,0.00014109,2]
[353874450,1740107443484,-500.0,0.00014109,2]
[353874451,1740107443495,-2606.66,0.00014109,2]
[353874453,1740107443505,-1620.99,0.00014109,2]
[353874455,1740107443515,-583.01,0.00014109,2]
[353874457,1740107443524,-907.24,0.00014109,2]
[353874459,1740107443534,-500.0,0.00014109,2]
[353874461,1740107443544,-500.0,0.00014109,2]
[353874463,1740107443553,-13171.03,0.00014109,2]
[353874465,1740107443566,-1823.61,0.00014109,2]
[353874468,1740107443576,-520.65,0.00014109,2]
[353874469,1740107443585,-500.0,0.00014109,2]
[353874471,1740107443595,-1856.58,0.00014109,2]
[353874474,1740107443604,-1298.88,0.00014109,2]
[353874476,1740107443614,-500.0,0.00014109,2]
[353874478,1740107443623,-500.0,0.00014109,2]
[353874480,1740107443633,-500.0,0.00014109,2]
[353874482,1740107443643,-500.0,0.00014109,2]
[353874484,1740107443652,-635.83,0.00014109,2]
[353874486,1740107443661,-500.0,0.00014109,2]
[353874488,1740107443671,-500.0,0.00014109,2]
[353874490,1740107443681,-4102.87,0.00014109,2]
[353874492,1740107443692,-1328.63,0.00014109,2]
[353874494,1740107443702,-1617.24,0.00014109,2]
[353874496,1740107443713,-500.0,0.00014109,2]
[353874498,1740107443723,-500.0,0.00014109,2]
[353874500,1740107443733,-500.0,0.00014109,2]
[353874502,1740107443744,-6014.3,0.00014109,2]
[353874504,1740107443753,-500.0,0.00014109,2]
[353874506,1740107443763,-11177.63,0.00014109,2]
[353874508,1740107443773,-500.0,0.00014109,2]
[353874510,1740107443783,-816.91,0.00014109,2]
[353874512,1740107443792,-600.0,0.00014164,2]
[353874514,1740107443801,-710.4166357,0.00014164,2]
[353874516,1740107443811,-355.2534587,0.00014164,2]
[353874518,1740107443820,-355.2534587,0.00014164,2]
[353874520,1740107443830,-355.2534587,0.00014164,2]
[353874522,1740107443839,-500.0,0.00014173,2]
[353874524,1740107443848,-500.44003634,0.00014173,2]
[353874526,1740107443857,-500.43396858,0.00014173,2]
[353874528,1740107443866,-500.27639315,0.00014173,2]
[353874530,1740107443875,-500.15058549,0.00014173,2]
[353874532,1740107443885,-500.0,0.00014173,2]
[353874534,1740107443894,-500.0,0.00014173,2]
[353874536,1740107443904,-502.47630544,0.00014173,2]
[353874538,1740107443913,-597.46128311,0.00014173,2]
[353874540,1740107443923,-500.0,0.00014173,2]
[353874542,1740107443932,-501.18809879,0.00014173,2]
[353874544,1740107443941,-500.0,0.00014173,2]
[353874546,1740107443950,-500.0,0.00014173,2]
[353874548,1740107443960,-500.0,0.00014173,2]
[353874550,1740107443970,-500.0,0.00014173,2]
[353874552,1740107443979,-203.08957342,0.00014173,2]
[353874554,1740107443988,-203.08,0.00014173,2]
[353874556,1740107443997,-280.23128327,0.00014173,2]
[353874558,1740107444007,-280.23128327,0.00014173,2]
[353874560,1740107444016,-280.23128327,0.00014173,2]
[353874562,1740107444027,-280.23128327,0.00014173,2]
[353874564,1740107444036,-280.23128327,0.00014173,2]
[353874566,1740107444046,-280.23128327,0.00014173,2]
[353874568,1740107444056,-280.23128327,0.00014173,2]
[353874570,1740107444065,-280.23128327,0.00014173,2]
[353874572,1740107444074,-280.23128327,0.00014173,2]
[353874574,1740107444084,-280.23128327,0.00014173,2]
[353874576,1740107444097,-280.23128327,0.00014173,2]
[353874578,1740107444107,-280.23128327,0.00014173,2]
[353874580,1740107444117,-280.23128327,0.00014173,2]
[353874582,1740107444126,-280.23128327,0.00014173,2]
[353874584,1740107444136,-280.23128327,0.00014173,2]
[353874586,1740107444146,-280.23128327,0.00014173,2]
[353874588,1740107444155,-280.23128327,0.00014173,2]
[353874590,1740107444164,-280.23128327,0.00014173,2]
[353874592,1740107444176,-280.23128327,0.00014173,2]
[353874594,1740107444186,-280.23,0.00014173,2]
[353874596,1740107444195,-350.98694837,0.00014173,2]
[353874598,1740107444204,-350.98694837,0.00014173,2]
[353874600,1740107444214,-350.98694837,0.00014173,2]
[353874602,1740107444223,-350.98694837,0.00014173,2]
[353874604,1740107444233,-350.98694837,0.00014173,2]
[353874606,1740107444243,-350.98694837,0.00014173,2]
[353874608,1740107444253,-350.98694837,0.00014173,2]
[353874610,1740107444263,-350.98694837,0.00014173,2]
[353874612,1740107444273,-350.98694837,0.00014173,2]
[353874614,1740107444283,-350.98694837,0.00014173,2]
[353874616,1740107444292,-350.98694837,0.00014173,2]
[353874618,1740107444301,-350.98694837,0.00014173,2]
[353874620,1740107444311,-350.98694837,0.00014173,2]
[353874622,1740107444320,-350.98694837,0.00014173,2]
[353874624,1740107444330,-350.98694837,0.00014173,2]
[353874626,1740107444339,-350.98694837,0.00014173,2]
[353874628,1740107444349,-350.98694837,0.00014173,2]
[353874630,1740107444359,-350.98694837,0.00014173,2]
[353874632,1740107444368,-350.98694837,0.00014173,2]
[353874634,1740107444377,-350.98,0.00014173,2]
[353874636,1740107444387,-500.0,0.00014191,2]
[353874638,1740107444396,-500.0,0.00014191,2]
[353874640,1740107444405,-500.0,0.00014191,2]
[353874642,1740107444414,-500.0,0.00014191,2]
[353874644,1740107444423,-594.01,0.00014191,2]
[353874646,1740107444432,-500.0,0.00014191,2]
[353874648,1740107444441,-500.0,0.00014191,2]
[353874650,1740107444450,-582.95,0.00014191,2]
[353874652,1740107444460,-500.0,0.00014191,2]
[353874654,1740107444469,-500.0,0.00014191,2]
[353874656,1740107444479,-500.0,0.00014191,2]
[353874658,1740107444488,-500.0,0.00014191,2]
[353874660,1740107444498,-717.52,0.00014191,2]
[353874662,1740107444508,-500.0,0.00014191,2]
[353874664,1740107444517,-536.81,0.00014191,2]
[353874666,1740107444527,-500.0,0.00014191,2]
[353874668,1740107444536,-500.0,0.00014191,2]
[353874671,1740107444547,-500.0,0.00014191,2]
[353874673,1740107444557,-510.04550111,0.00014191,2]
[353874675,1740107444568,-500.0,0.00014191,2]
[353874677,1740107444578,-500.0,0.00014191,2]
[353874679,1740107444587,-500.0,0.00014191,2]
[353874681,1740107444596,-2466.59,0.00014191,2]
[353874683,1740107444606,-792.77,0.00014191,2]
[353874685,1740107444616,-1718.54,0.00014191,2]
[353874687,1740107444625,-500.0,0.00014191,2]
[353874689,1740107444635,-975.81,0.00014191,2]
[353874691,1740107444649,-902.95,0.00014191,2]
[353874693,1740107444658,-500.0,0.00014191,2]
[353874695,1740107444668,-26068.84,0.00014191,2]
[353874697,1740107444677,-818.05,0.00014191,2]
[353874699,1740107444687,-500.0,0.00014191,2]
[353874701,1740107444696,-1628.9,0.00014191,2]
[353874703,1740107444705,-1290.91,0.00014191,2]
[353874705,1740107444715,-999.03,0.00014191,2]
[353874707,1740107444725,-965.51,0.00014191,2]
[353874709,1740107444738,-589.06,0.00014191,2]
[353874711,1740107444750,-2190.03,0.00014191,2]
[353874713,1740107444760,-4503.57,0.00014191,2]
[353874715,1740107444770,-500.0,0.00014191,2]
[353874717,1740107444780,-500.0,0.00014191,2]
[353874719,1740107444791,-500.0,0.00014191,2]
[353874721,1740107444800,-500.0,0.00014191,2]
[353874723,1740107444810,-2343.12,0.00014191,2]
[353874725,1740107444820,-500.0,0.00014191,2]
[353874727,1740107444829,-500.0,0.00014191,2]
[353874729,1740107444839,-500.0,0.00014191,2]
[353874731,1740107444848,-1304.69,0.00014191,2]
[353874733,1740107444857,-500.0,0.00014191,2]
[353874735,1740107444867,-881.12,0.00014191,2]
[353874737,1740107444877,-1406.72,0.00014191,2]
[353874739,1740107444887,-729.83,0.00014191,2]
[353874742,1740107444897,-500.0,0.00014191,2]
[353874744,1740107444907,-2606.66,0.00014191,2]
[353874746,1740107444917,-1620.99,0.00014191,2]
[353874748,1740107444926,-583.01,0.00014191,2]
[353874750,1740107444936,-907.24,0.00014191,2]
[353874752,1740107444945,-500.0,0.00014191,2]
[353874754,1740107444954,-500.0,0.00014191,2]
[353874756,1740107444964,-13171.03,0.00014191,2]
[353874758,1740107444973,-1823.61,0.00014191,2]
[353874760,1740107444983,-520.65,0.00014191,2]
[353874762,1740107444992,-500.0,0.00014191,2]
[353874764,1740107445002,-1856.58,0.00014191,2]
[353874766,1740107445011,-1298.88,0.00014191,2]
[353874768,1740107445021,-343.97326887,0.00014191,2]
[353874770,1740107445031,-500.0,0.00014191,2]
[353874772,1740107445040,-500.0,0.00014191,2]
[353874774,1740107445049,-500.0,0.00014191,2]
[353874776,1740107445059,-635.83,0.00014191,2]
[353874778,1740107445067,-500.0,0.00014191,2]
[353874780,1740107445077,-500.0,0.00014191,2]
[353874782,1740107445086,-4102.87,0.00014191,2]
[353874784,1740107445099,-1328.63,0.00014191,2]
[353874786,1740107445109,-1617.24,0.00014191,2]
[353874788,1740107445119,-500.0,0.00014191,2]
[353874790,1740107445127,-500.0,0.00014191,2]
[353874792,1740107445138,-500.0,0.00014191,2]
[353874794,1740107445149,-6014.3,0.00014191,2]
[353874796,1740107445158,-500.0,0.00014191,2]
[353874798,1740107445168,-11177.63,0.00014191,2]
[353874800,1740107445179,-500.0,0.00014191,2]
[353874802,1740107445188,-816.91,0.00014191,2]
[353874804,1740107445199,-151.0,0.000142,2]
[353874806,1740107445208,-328.12031758,0.00014205,2]
[353874808,1740107445218,-2926.33189115,0.00014258,2]
[353874810,1740107445227,-500.0,0.00014273,2]
[353874812,1740107445237,-500.0,0.00014273,2]
[353874814,1740107445247,-500.0,0.00014273,2]
[353874816,1740107445256,-500.0,0.00014273,2]
[353874818,1740107445265,-594.01,0.00014273,2]
[353874820,1740107445275,-500.0,0.00014273,2]
[353874822,1740107445284,-500.0,0.00014273,2]
[353874824,1740107445294,-582.95,0.00014273,2]
[353874826,1740107445303,-500.0,0.00014273,2]
[353874828,1740107445313,-500.0,0.00014273,2]
[353874830,1740107445322,-500.0,0.00014273,2]
[353874832,1740107445332,-500.0,0.00014273,2]
[353874834,1740107445341,-717.52,0.00014273,2]
[353874836,1740107445350,-500.0,0.00014273,2]
[353874838,1740107445359,-536.81,0.00014273,2]
[353874840,1740107445368,-500.0,0.00014273,2]
[353874842,1740107445378,-500.0,0.00014273,2]
[353874844,1740107445387,-500.0,0.00014273,2]
[353874846,1740107445395,-500.0,0.00014273,2]
[353874848,1740107445405,-500.0,0.00014273,2]
[353874850,1740107445414,-500.0,0.00014273,2]
[353874852,1740107445424,-2466.59,0.00014273,2]
[353874854,1740107445433,-792.77,0.00014273,2]
[353874855,1740107445446,-1718.54,0.00014273,2]
[353874857,1740107445456,-500.0,0.00014273,2]
[353874859,1740107445466,-975.81,0.00014273,2]
[353874862,1740107445476,-902.95,0.00014273,2]
[353874865,1740107445485,-500.0,0.00014273,2]
[353874868,1740107445494,-26068.84,0.00014273,2]
[353874870,1740107445504,-818.05,0.00014273,2]
[353874872,1740107445514,-500.0,0.00014273,2]
[353874874,1740107445527,-1628.9,0.00014273,2]
[353874876,1740107445543,-1290.91,0.00014273,2]
[353874878,1740107445553,-999.03,0.00014273,2]
[353874880,1740107445565,-965.51,0.00014273,2]
[353874883,1740107445575,-589.06,0.00014273,2]
[353874885,1740107445587,-2190.03,0.00014273,2]
[353874887,1740107445598,-4503.57,0.00014273,2]
[353874889,1740107445608,-500.0,0.00014273,2]
[353874891,1740107445618,-500.0,0.00014273,2]
[353874893,1740107445627,-500.0,0.00014273,2]
[353874895,1740107445637,-500.0,0.00014273,2]
[353874897,1740107445646,-2343.12,0.00014273,2]
[353874899,1740107445656,-500.0,0.00014273,2]
[353874901,1740107445665,-500.0,0.00014273,2]
[353874903,1740107445675,-500.0,0.00014273,2]
[353874905,1740107445685,-1304.69,0.00014273,2]
[353874907,1740107445694,-500.0,0.00014273,2]
[353874909,1740107445704,-881.12,0.00014273,2]
[353874911,1740107445714,-1406.72,0.00014273,2]
[353874913,1740107445723,-729.83,0.00014273,2]
[353874915,1740107445733,-500.0,0.00014273,2]
[353874917,1740107445743,-2606.66,0.00014273,2]
[353874919,1740107445752,-1620.99,0.00014273,2]
[353874921,1740107445763,-583.01,0.00014273,2]
[353874923,1740107445772,-907.24,0.00014273,2]
[353874925,1740107445782,-500.0,0.00014273,2]
[353874927,1740107445791,-500.0,0.00014273,2]
[353874929,1740107445801,-13171.03,0.00014273,2]
[353874931,1740107445811,-1823.61,0.00014273,2]
[353874934,1740107445822,-520.65,0.00014273,2]
[353874935,1740107445833,-500.0,0.00014273,2]
[353874938,1740107445842,-1856.58,0.00014273,2]
[353874940,1740107445852,-1298.88,0.00014273,2]
[353874942,1740107445862,-500.0,0.00014273,2]
[353874944,1740107445871,-500.0,0.00014273,2]
[353874957,1740107445980,-500.0,0.00014273,2]
[353874959,1740107445990,-635.83,0.00014273,2]
[353874961,1740107446000,-500.0,0.00014273,2]
[353874963,1740107446009,-500.0,0.00014273,2]
[353874965,1740107446019,-4102.87,0.00014273,2]
[353874967,1740107446029,-1328.63,0.00014273,2]
[353874969,1740107446039,-1617.24,0.00014273,2]
[353874971,1740107446048,-500.0,0.00014273,2]
[353874973,1740107446058,-500.0,0.00014273,2]
[353874975,1740107446067,-500.0,0.00014273,2]
[353874977,1740107446077,-6014.3,0.00014273,2]
[353874979,1740107446086,-216.07203135,0.00014273,2]
[353874981,1740107446098,-11177.63,0.00014273,2]
[353874983,1740107446109,-500.0,0.00014273,2]
[353874985,1740107446118,-816.91,0.00014273,2]
[353874987,1740107446127,-7438.69753278,0.00014293,2]